fUSD/lending_fUSD_20250123
["ID","MTS","AMOUNT","RATE_DAILY","PERIOD"]
[350164971,1737664248388,-500.0,0.0001792,2]
[350164972,1737664248397,-500.0,0.0001792,2]
[350164973,1737664248407,-500.0,0.0001792,2]
[350164974,1737664248417,-500.0,0.0001792,2]
[350164975,1737664248426,-500.0,0.0001792,2]
[350164976,1737664248435,-500.0,0.0001792,2]
[350164977,1737664248445,-500.0,0.0001792,2]
[350164978,1737664248455,-1435.22,0.0001792,2]
[350164979,1737664248465,-301.22,0.0001792,2]
[350164980,1737664248474,-500.0,0.0001792,2]
[350164981,1737664248483,-1023.09,0.0001792,2]
[350164982,1737664248493,-500.0,0.0001792,2]
[350164983,1737664248503,-844.2,0.0001792,2]
[350164984,1737664248513,-500.0,0.0001792,2]
[350164985,1737664248541,-681.37,0.0001792,2]
[350164986,1737664248552,-500.0,0.0001792,2]
[350164987,1737664248562,-854.39,0.0001792,2]
[350164988,1737664248572,-500.0,0.0001792,2]
[350164989,1737664248583,-500.0,0.0001792,2]
[350164990,1737664248592,-1001.38,0.0001792,2]
[350164991,1737664248602,-533.0,0.0001792,2]
[350164992,1737664248612,-500.0,0.0001792,2]
[350164993,1737664248621,-783.74,0.0001792,2]
[350164994,1737664248631,-477.99657957,0.0001792,2]
[350164995,1737664248640,-391.76886895,0.0001792,2]
[350164996,1737664248650,-500.0,0.0001792,2]
[350164997,1737664248660,-616.92,0.0001792,2]
[350164998,1737664248670,-500.0,0.0001792,2]
[350164999,1737664248678,-847.43,0.0001792,2]
[350165000,1737664248689,-500.0,0.0001792,2]
[350165001,1737664248698,-500.0,0.0001792,2]
[350165002,1737664248708,-500.0,0.0001792,2]
[350165003,1737664248717,-863.43,0.0001792,2]
[350165004,1737664248727,-500.0,0.0001792,2]
[350165005,1737664248737,-500.0,0.0001792,2]
[350165006,1737664248747,-241.94461114,0.00017934,2]
[350165007,1737664248758,-460.77,0.00017951,2]
[350165008,1737664248768,-816.23025851,0.00017972,2]
[350165009,1737664248777,-500.0,0.00017973,2]
[350165010,1737664248787,-500.0,0.00017973,2]
[350165011,1737664248797,-3142.87144456,0.00017997,2]
[350165012,1737664248808,-52512.50931369,0.00018,2]
[350165013,1737664248818,-27642.46867755,0.00018,2]
[350165014,1737664249042,-300.21694122,0.00018,2]
[350165015,1737664249056,-516.6161,0.00018,2]
[350165016,1737664249401,-500.0,0.00017372,2]
[350165017,1737664249410,-500.0,0.00017646,2]
[350165018,1737664249420,-500.0,0.0001792,2]
[350165019,1737664249430,-19511.9969961,0.00018,2]
[350165020,1737664249490,-500.0,0.00017098,2]
[350165021,1737664249499,-2664.3881994,0.00018,2]
[350165022,1737664249882,-168.856926,0.00017098,2]
[350165023,1737664249892,-500.0,0.0001737,2]
[350165024,1737664249901,-275.21234793,0.0001737,2]
[350165025,1737664249910,-500.0,0.00017371,2]
[350165026,1737664249919,-280.6,0.00017372,2]
[350165027,1737664249929,-500.0,0.00017645,2]
[350165028,1737664249938,-500.0,0.00017645,2]
[350165029,1737664249948,-1176.0,0.00017805,2]
[350165030,1737664249958,-500.0,0.00017919,2]
[350165031,1737664249968,-14473.8181554,0.00018,2]
[350165032,1737664249977,-2000.0,0.00018,2]
[350165033,1737664249986,-200.0,0.00018,2]
[350165034,1737664249995,-1294.90070456,0.00018,2]
[350165035,1737664250004,-200.0,0.00018,2]
[350165036,1737664250014,-2000.0,0.00018,2]
[350165037,1737664250024,-200.0,0.00018,2]
[350165038,1737664250051,-3000.0,0.00018,2]
[350165039,1737664250061,-2000.0,0.00018,2]
[350165040,1737664250071,-200.0,0.00018,2]
[350165041,1737664250080,-1000.0,0.00018072,2]
[350165042,1737664250090,-201.0,0.0001808,2]
[350165043,1737664250099,-2183.5092398,0.00018082,2]
[350165044,1737664250109,-200.0,0.00018082,2]
[350165045,1737664250118,-2000.0,0.00018082,2]
[350165046,1737664250127,-6640.3379225,0.00018084,2]
[350165047,1737664250137,-241.94461114,0.00018107,2]
[350165048,1737664250146,-500.0,0.0001811,2]
[350165049,1737664250155,-500.0,0.0001811,2]
[350165050,1737664250165,-526.48,0.0001811,2]
[350165051,1737664250174,-973.64,0.0001811,2]
[350165052,1737664250183,-500.0,0.0001811,2]
[350165053,1737664250192,-500.0,0.0001811,2]
[350165054,1737664250202,-766.88,0.0001811,2]
[350165055,1737664250212,-500.0,0.0001811,2]
[350165056,1737664250222,-500.0,0.0001811,2]
[350165057,1737664250231,-500.0,0.0001811,2]
[350165058,1737664250240,-698.41,0.0001811,2]
[350165059,1737664250249,-500.0,0.0001811,2]
[350165060,1737664250259,-500.0,0.0001811,2]
[350165061,1737664250269,-500.0,0.0001811,2]
[350165062,1737664250278,-500.0,0.0001811,2]
[350165063,1737664250287,-500.0,0.0001811,2]
[350165064,1737664250296,-500.0,0.0001811,2]
[350165065,1737664250306,-500.0,0.0001811,2]
[350165066,1737664250316,-500.0,0.0001811,2]
[350165067,1737664250325,-500.0,0.0001811,2]
[350165068,1737664250334,-500.0,0.0001811,2]
[350165069,1737664250343,-830.42,0.0001811,2]
[350165070,1737664250353,-1875.05,0.0001811,2]
[350165071,1737664250362,-500.0,0.0001811,2]
[350165072,1737664250372,-500.0,0.0001811,2]
[350165073,1737664250381,-500.0,0.0001811,2]
[350165074,1737664250391,-843.82,0.0001811,2]
[350165075,1737664250401,-500.0,0.0001811,2]
[350165076,1737664250410,-3142.87144456,0.00018147,2]
[350165077,1737664250420,-200.0,0.0001818,2]
[350165078,1737664250430,-200.0,0.0001818,2]
[350165079,1737664250440,-6880.78353126,0.00018189,2]
[350165080,1737664250450,-500.0,0.00018192,2]
[350165081,1737664250459,-500.0,0.00018193,2]
[350165082,1737664250469,-500.0,0.00018193,2]
[350165083,1737664250479,-500.0,0.00018193,2]
[350165084,1737664250488,-647.40017308,0.00018193,2]
[350165085,1737664250502,-500.0,0.00018193,2]
[350165086,1737664250512,-500.0,0.00018193,2]
[350165087,1737664250522,-500.0,0.00018193,2]
[350165088,1737664250548,-187.28126973,0.00018193,2]
[350165089,1737664250557,-500.0,0.00018193,2]
[350165090,1737664250567,-517.78165706,0.00018193,2]
[350165091,1737664250576,-500.0,0.00018193,2]
[350165092,1737664250586,-500.0,0.00018193,2]
[350165093,1737664250595,-530.34375308,0.00018193,2]
[350165094,1737664250605,-500.0,0.00018193,2]
[350165095,1737664250613,-500.0,0.00018193,2]
[350165096,1737664250622,-500.0,0.00018193,2]
[350165097,1737664250631,-158.24509703,0.00018193,2]
[350165098,1737664250641,-500.0,0.00018193,2]
[350165099,1737664250650,-500.0,0.00018193,2]
[350165100,1737664250659,-500.0,0.00018193,2]
[350165101,1737664250669,-1018.87,0.00018193,2]
[350165102,1737664250679,-517.33604945,0.00018193,2]
[350165103,1737664250688,-615.21177807,0.00018193,2]
[350165104,1737664250700,-500.0,0.00018193,2]
[350165105,1737664250710,-500.0,0.00018193,2]
[350165106,1737664250719,-305.256379,0.00018193,2]
[350165107,1737664250729,-500.0,0.00018193,2]
[350165108,1737664250738,-195.14714639,0.00018193,2]
[350165109,1737664250748,-509.89,0.00018193,2]
[350165110,1737664250757,-893.77,0.00018193,2]
[350165111,1737664250767,-500.0,0.00018193,2]
[350165112,1737664250776,-577.94,0.00018193,2]
[350165113,1737664250786,-500.0,0.00018193,2]
[350165114,1737664250796,-1224.03,0.00018193,2]
[350165115,1737664250806,-513.53,0.00018193,2]
[350165116,1737664250816,-969.74,0.00018193,2]
[350165117,1737664250826,-1178.94,0.00018193,2]
[350165118,1737664250839,-801.74,0.00018193,2]
[350165119,1737664250850,-500.0,0.00018193,2]
[350165120,1737664250860,-893.24,0.00018193,2]
[350165121,1737664250872,-941.15,0.00018193,2]
[350165122,1737664250882,-1911.95,0.00018193,2]
[350165123,1737664250893,-977.52,0.00018193,2]
[350165124,1737664250903,-500.0,0.00018193,2]
[350165125,1737664250913,-601.73,0.00018193,2]
[350165126,1737664250925,-1203.86,0.00018193,2]
[350165127,1737664250935,-614.76,0.00018193,2]
[350165128,1737664250945,-521.93,0.00018193,2]
[350165129,1737664250956,-500.0,0.00018193,2]
[350165130,1737664250966,-500.0,0.00018193,2]
[350165131,1737664250976,-500.0,0.00018193,2]
[350165132,1737664250986,-1027.64,0.00018193,2]
[350165133,1737664250996,-500.0,0.00018193,2]
[350165134,1737664251006,-824.21,0.00018193,2]
[350165135,1737664251016,-500.0,0.00018193,2]
[350165136,1737664251026,-595.65,0.00018193,2]
[350165137,1737664251036,-500.0,0.00018194,2]
[350165138,1737664251063,-500.0,0.00018194,2]
[350165139,1737664251075,-500.0,0.00018194,2]
[350165140,1737664251086,-500.0,0.00018194,2]
[350165141,1737664251096,-500.0,0.00018194,2]
[350165142,1737664251106,-500.0,0.00018194,2]
[350165143,1737664251116,-500.0,0.00018194,2]
[350165144,1737664251126,-500.0,0.00018194,2]
[350165145,1737664251136,-500.0,0.00018194,2]
[350165146,1737664251146,-500.0,0.00018194,2]
[350165147,1737664251156,-500.0,0.00018194,2]
[350165148,1737664251165,-500.0,0.00018194,2]
[350165149,1737664251175,-500.0,0.00018194,2]
[350165150,1737664251184,-500.0,0.00018194,2]
[350165151,1737664251194,-573.1629725,0.00018194,2]
[350165152,1737664251205,-500.0,0.00018194,2]
[350165153,1737664251216,-500.0,0.00018194,2]
[350165154,1737664251227,-1623.2,0.00018194,2]
[350165155,1737664251237,-500.0,0.00018194,2]
[350165156,1737664251247,-500.0,0.00018194,2]
[350165157,1737664251257,-500.0,0.00018194,2]
[350165158,1737664251267,-500.0,0.00018194,2]
[350165159,1737664251276,-500.0,0.00018194,2]
[350165160,1737664251287,-500.0,0.00018194,2]
[350165161,1737664251297,-500.0,0.00018194,2]
[350165162,1737664251307,-500.0,0.00018194,2]
[350165163,1737664251317,-1435.22,0.00018194,2]
[350165164,1737664251327,-1023.09,0.00018194,2]
[350165165,1737664251336,-500.0,0.00018194,2]
[350165166,1737664251346,-844.2,0.00018194,2]
[350165167,1737664251355,-500.0,0.00018194,2]
[350165168,1737664251365,-681.37,0.00018194,2]
[350165169,1737664251375,-500.0,0.00018194,2]
[350165170,1737664251384,-854.39,0.00018194,2]
[350165171,1737664251394,-500.0,0.00018194,2]
[350165172,1737664251403,-500.0,0.00018194,2]
[350165173,1737664251413,-1001.38,0.00018194,2]
[350165174,1737664251422,-533.0,0.00018194,2]
[350165175,1737664251433,-500.0,0.00018194,2]
[350165176,1737664251443,-783.74,0.00018194,2]
[350165177,1737664251452,-500.0,0.00018194,2]
[350165178,1737664251467,-616.92,0.00018194,2]
[350165179,1737664251477,-500.0,0.00018194,2]
[350165180,1737664251487,-847.43,0.00018194,2]
[350165181,1737664251496,-500.0,0.00018194,2]
[350165182,1737664251505,-500.0,0.00018194,2]
[350165183,1737664251515,-500.0,0.00018194,2]
[350165184,1737664251525,-863.43,0.00018194,2]
[350165185,1737664251535,-500.0,0.00018194,2]
[350165186,1737664251565,-500.0,0.00018194,2]
[350165187,1737664251576,-168.856926,0.00018194,2]
[350165188,1737664251585,-816.23025851,0.00018215,2]
[350165189,1737664251595,-1000.0,0.00018245,2]
[350165190,1737664251605,-241.94461114,0.00018279,2]
[350165191,1737664251615,-3142.87144456,0.00018298,2]
[350165192,1737664251624,-7653.11,0.00018356,2]
[350165193,1737664251635,-200.0,0.00018362,2]
[350165194,1737664251645,-220.0,0.00018367,2]
[350165195,1737664251655,-500.0,0.00018384,2]
[350165196,1737664251664,-500.0,0.00018384,2]
[350165197,1737664251674,-526.48,0.00018384,2]
[350165198,1737664251684,-973.64,0.00018384,2]
[350165199,1737664251694,-500.0,0.00018384,2]
[350165200,1737664251703,-500.0,0.00018384,2]
[350165201,1737664251713,-766.88,0.00018384,2]
[350165202,1737664251723,-500.0,0.00018384,2]
[350165203,1737664251732,-500.0,0.00018384,2]
[350165204,1737664251742,-500.0,0.00018384,2]
[350165205,1737664251752,-698.41,0.00018384,2]
[350165206,1737664251762,-500.0,0.00018384,2]
[350165207,1737664251772,-500.0,0.00018384,2]
[350165208,1737664251781,-537.22,0.00018384,2]
[350165209,1737664251791,-500.0,0.00018384,2]
[350165210,1737664251801,-500.0,0.00018384,2]
[350165211,1737664251811,-500.0,0.00018384,2]
[350165212,1737664251821,-500.0,0.00018384,2]
[350165213,1737664251831,-500.0,0.00018384,2]
[350165214,1737664251841,-500.0,0.00018384,2]
[350165215,1737664251850,-500.0,0.00018384,2]
[350165216,1737664251860,-830.42,0.00018384,2]
[350165217,1737664251873,-1875.05,0.00018384,2]
[350165218,1737664251883,-500.0,0.00018384,2]
[350165219,1737664251892,-500.0,0.00018384,2]
[350165220,1737664251902,-843.82,0.00018384,2]
[350165221,1737664251914,-500.0,0.00018384,2]
[350165222,1737664251927,-1000.0,0.00018432,2]
[350165223,1737664251938,-3142.87144456,0.00018448,2]
[350165224,1737664251948,-241.94461114,0.00018452,2]
[350165225,1737664251958,-816.23025851,0.00018459,2]
[350165226,1737664251968,-500.0,0.00018467,2]
[350165227,1737664251977,-500.0,0.00018467,2]
[350165228,1737664251987,-500.0,0.00018467,2]
[350165229,1737664251997,-500.0,0.00018467,2]
[350165230,1737664252007,-500.0,0.00018467,2]
[350165231,1737664252016,-491.33453317,0.00018467,2]
[350165232,1737664252027,-500.0,0.00018467,2]
[350165233,1737664252037,-350.73521681,0.00018467,2]
[350165234,1737664252066,-1018.87,0.00018467,2]
[350165235,1737664252081,-500.0,0.00018467,2]
[350165236,1737664252093,-305.256379,0.00018467,2]
[350165237,1737664252105,-509.89,0.00018467,2]
[350165238,1737664252116,-893.77,0.00018467,2]
[350165239,1737664252127,-577.94,0.00018467,2]
[350165240,1737664252138,-500.0,0.00018467,2]
[350165241,1737664252150,-1224.03,0.00018467,2]
[350165242,1737664252161,-969.74,0.00018467,2]
[350165243,1737664252171,-1178.94,0.00018467,2]
[350165244,1737664252182,-801.74,0.00018467,2]
[350165245,1737664252193,-500.0,0.00018467,2]
[350165246,1737664252203,-893.24,0.00018467,2]
[350165247,1737664252214,-941.15,0.00018467,2]
[350165248,1737664252224,-1911.95,0.00018467,2]
[350165249,1737664252234,-977.52,0.00018467,2]
[350165250,1737664252244,-500.0,0.00018467,2]
[350165251,1737664252254,-601.73,0.00018467,2]
[350165252,1737664252264,-1203.86,0.00018467,2]
[350165253,1737664252275,-614.76,0.00018467,2]
[350165254,1737664252285,-521.93,0.00018467,2]
[350165255,1737664252295,-500.0,0.00018467,2]
[350165256,1737664252304,-500.0,0.00018467,2]
[350165257,1737664252314,-500.0,0.00018467,2]
[350165258,1737664252324,-1027.64,0.00018467,2]
[350165259,1737664252334,-500.0,0.00018467,2]
[350165260,1737664252344,-824.21,0.00018467,2]
[350165261,1737664252354,-500.0,0.00018467,2]
[350165262,1737664252364,-500.0,0.00018468,2]
[350165263,1737664252373,-500.0,0.00018468,2]
[350165264,1737664252383,-500.0,0.00018468,2]
[350165265,1737664252392,-500.0,0.00018468,2]
[350165266,1737664252402,-500.0,0.00018468,2]
[350165267,1737664252412,-500.0,0.00018468,2]
[350165268,1737664252422,-500.0,0.00018468,2]
[350165269,1737664252431,-500.0,0.00018468,2]
[350165270,1737664252441,-500.0,0.00018468,2]
[350165271,1737664252451,-507.09,0.00018468,2]
[350165272,1737664252460,-500.0,0.00018468,2]
[350165273,1737664252470,-500.0,0.00018468,2]
[350165274,1737664252479,-500.0,0.00018468,2]
[350165275,1737664252489,-500.0,0.00018468,2]
[350165276,1737664252499,-500.0,0.00018468,2]
[350165277,1737664252509,-500.0,0.00018468,2]
[350165278,1737664252519,-1623.2,0.00018468,2]
[350165279,1737664252530,-500.0,0.00018468,2]
[350165280,1737664252540,-500.0,0.00018468,2]
[350165281,1737664252558,-500.0,0.00018468,2]
[350165282,1737664252567,-500.0,0.00018468,2]
[350165283,1737664252578,-500.0,0.00018468,2]
[350165284,1737664252588,-538.81427166,0.00018468,2]
[350165285,1737664252601,-500.0,0.00018468,2]
[350165286,1737664252611,-1435.22,0.00018468,2]
[350165287,1737664252620,-1023.09,0.00018468,2]
[350165288,1737664252630,-500.0,0.00018468,2]
[350165289,1737664252640,-844.2,0.00018468,2]
[350165290,1737664252649,-500.0,0.00018468,2]
[350165291,1737664252660,-681.37,0.00018468,2]
[350165292,1737664252670,-500.0,0.00018468,2]
[350165293,1737664252681,-854.39,0.00018468,2]
[350165294,1737664252691,-500.0,0.00018468,2]
[350165295,1737664252700,-500.0,0.00018468,2]
[350165296,1737664252710,-1001.38,0.00018468,2]
[350165297,1737664252720,-533.0,0.00018468,2]
[350165298,1737664252730,-500.0,0.00018468,2]
[350165299,1737664252740,-783.74,0.00018468,2]
[350165300,1737664252750,-500.0,0.00018468,2]
[350165301,1737664252760,-616.92,0.00018468,2]
[350165302,1737664252770,-500.0,0.00018468,2]
[350165303,1737664252779,-847.43,0.00018468,2]
[350165304,1737664252789,-500.0,0.00018468,2]
[350165305,1737664252803,-500.0,0.00018468,2]
[350165306,1737664252818,-500.0,0.00018468,2]
[350165307,1737664252830,-863.43,0.00018468,2]
[350165308,1737664252840,-500.0,0.00018468,2]
[350165309,1737664252850,-500.0,0.00018468,2]
[350165310,1737664252859,-1000.0,0.0001848,2]
[350165311,1737664252873,-1000.0,0.00018484,2]
[350165312,1737664252883,-900.0,0.000185,6]
[350165313,1737664252893,-201.0,0.0001852,2]
[350165314,1737664252903,-389.87327567,0.00018521,2]
[350165315,1737664252913,-9999.99,0.00018533,2]
[350165316,1737664252923,-299.99,0.00018533,4]
[350165317,1737664252933,-812.63,0.00018533,2]
[350165318,1737664252944,-27565.09,0.00018533,2]
[350165319,1737664252954,-999.99,0.00018533,2]
[350165320,1737664252963,-150.99,0.00018533,2]
[350165321,1737664252974,-4325.91,0.00018533,2]
[350165322,1737664252984,-264.65,0.00018533,2]
[350165323,1737664252995,-9999.99,0.00018533,2]
[350165324,1737664253005,-150.99,0.00018533,2]
[350165325,1737664253015,-150.0,0.00018536,2]
[350165326,1737664253024,-150.0,0.00018536,2]
[350165327,1737664253034,-150.0,0.00018536,2]
[350165328,1737664253043,-150.0,0.00018536,2]
[350165329,1737664253064,-150.0,0.00018536,2]
[350165330,1737664253075,-150.0,0.00018536,2]
[350165331,1737664253085,-3142.87144456,0.00018599,2]
[350165332,1737664253095,-1400.0,0.000186,6]
[350165333,1737664253105,-241.94461114,0.00018624,2]
[350165334,1737664253115,-500.0,0.00018658,2]
[350165335,1737664253124,-500.0,0.00018658,2]
[350165336,1737664253134,-526.48,0.00018658,2]
[350165337,1737664253144,-973.64,0.00018658,2]
[350165338,1737664253154,-500.0,0.00018658,2]
[350165339,1737664253164,-500.0,0.00018658,2]
[350165340,1737664253174,-766.88,0.00018658,2]
[350165341,1737664253183,-500.0,0.00018658,2]
[350165342,1737664253193,-500.0,0.00018658,2]
[350165343,1737664253202,-500.0,0.00018658,2]
[350165344,1737664253213,-698.41,0.00018658,2]
[350165345,1737664253223,-493.81551253,0.00018658,2]
[350165346,1737664253234,-500.0,0.00018658,2]
[350165347,1737664253245,-500.0,0.00018658,2]
[350165348,1737664253255,-500.0,0.00018658,2]
[350165349,1737664253265,-500.0,0.00018658,2]
[350165350,1737664253275,-500.0,0.00018658,2]
[350165351,1737664253286,-500.0,0.00018658,2]
[350165352,1737664253296,-500.0,0.00018658,2]
[350165353,1737664253317,-500.0,0.00018658,2]
[350165354,1737664253327,-830.42,0.00018658,2]
[350165355,1737664253337,-1875.05,0.00018658,2]
[350165356,1737664253347,-500.0,0.00018658,2]
[350165357,1737664253357,-500.0,0.00018658,2]
[350165358,1737664253367,-843.82,0.00018658,2]
[350165359,1737664253376,-500.0,0.00018658,2]
[350165360,1737664253386,-3000.0,0.00018674,5]
[350165361,1737664253396,-1900.0,0.000187,6]
[350165362,1737664253407,-816.23025851,0.00018702,2]
[350165363,1737664253417,-500.0,0.00018741,2]
[350165364,1737664253427,-500.0,0.00018741,2]
[350165365,1737664253584,-500.0,0.00018741,2]
[350165366,1737664253594,-500.0,0.00018741,2]
[350165367,1737664253603,-162.73258998,0.00018741,2]
[350165368,1737664253613,-1018.87,0.00018741,2]
[350165369,1737664253623,-500.0,0.00018741,2]
[350165370,1737664253632,-305.256379,0.00018741,2]
[350165371,1737664253642,-509.89,0.00018741,2]
[350165372,1737664253651,-893.77,0.00018741,2]
[350165373,1737664253661,-577.94,0.00018741,2]
[350165374,1737664253671,-500.0,0.00018741,2]
[350165375,1737664253680,-1224.03,0.00018741,2]
[350165376,1737664253690,-969.74,0.00018741,2]
[350165377,1737664253700,-1178.94,0.00018741,2]
[350165378,1737664253710,-801.74,0.00018741,2]
[350165379,1737664253720,-500.0,0.00018741,2]
[350165380,1737664253731,-893.24,0.00018741,2]
[350165381,1737664253740,-941.15,0.00018741,2]
[350165382,1737664253750,-1911.95,0.00018741,2]
[350165383,1737664253760,-977.52,0.00018741,2]
[350165384,1737664253771,-500.0,0.00018741,2]
[350165385,1737664253780,-601.73,0.00018741,2]
[350165386,1737664253789,-1203.86,0.00018741,2]
[350165387,1737664253803,-614.76,0.00018741,2]
[350165388,1737664253818,-521.93,0.00018741,2]
[350165389,1737664253828,-500.0,0.00018741,2]
[350165390,1737664253838,-500.0,0.00018741,2]
[350165391,1737664253848,-500.0,0.00018741,2]
[350165392,1737664253857,-1027.64,0.00018741,2]
[350165393,1737664253868,-500.0,0.00018741,2]
[350165394,1737664253879,-824.21,0.00018741,2]
[350165395,1737664253888,-500.0,0.00018741,2]
[350165396,1737664253897,-500.0,0.00018742,2]
[350165397,1737664253906,-500.0,0.00018742,2]
[350165398,1737664253915,-500.0,0.00018742,2]
[350165399,1737664253926,-500.0,0.00018742,2]
[350165400,1737664253935,-500.0,0.00018742,2]
[350165401,1737664253945,-500.0,0.00018742,2]
[350165402,1737664253955,-500.0,0.00018742,2]
[350165403,1737664253964,-500.0,0.00018742,2]
[350165404,1737664253973,-500.0,0.00018742,2]
[350165405,1737664253983,-500.0,0.00018742,2]
[350165406,1737664253992,-500.0,0.00018742,2]
[350165407,1737664254001,-500.0,0.00018742,2]
[350165408,1737664254011,-500.0,0.00018742,2]
[350165409,1737664254020,-500.0,0.00018742,2]
[350165410,1737664254029,-174.6714368,0.00018742,2]
[350165411,1737664254040,-1623.2,0.00018742,2]
[350165412,1737664254055,-500.0,0.00018742,2]
[350165413,1737664254068,-500.0,0.00018742,2]
[350165414,1737664254078,-500.0,0.00018742,2]
[350165415,1737664254087,-1435.22,0.00018742,2]
[350165416,1737664254096,-1023.09,0.00018742,2]
[350165417,1737664254106,-500.0,0.00018742,2]
[350165418,1737664254115,-844.2,0.00018742,2]
[350165419,1737664254124,-500.0,0.00018742,2]
[350165420,1737664254134,-681.37,0.00018742,2]
[350165421,1737664254143,-500.0,0.00018742,2]
[350165422,1737664254153,-854.39,0.00018742,2]
[350165423,1737664254162,-500.0,0.00018742,2]
[350165424,1737664254172,-500.0,0.00018742,2]
[350165425,1737664254181,-1001.38,0.00018742,2]
[350165426,1737664254191,-533.0,0.00018742,2]
[350165427,1737664254200,-500.0,0.00018742,2]
[350165428,1737664254210,-783.74,0.00018742,2]
[350165429,1737664254220,-500.0,0.00018742,2]
[350165430,1737664254230,-616.92,0.00018742,2]
[350165431,1737664254239,-847.43,0.00018742,2]
[350165432,1737664254249,-500.0,0.00018742,2]
[350165433,1737664254258,-500.0,0.00018742,2]
[350165434,1737664254268,-500.0,0.00018742,2]
[350165435,1737664254278,-863.43,0.00018742,2]
[350165436,1737664254287,-500.0,0.00018742,2]
[350165437,1737664254296,-500.0,0.00018742,2]
[350165438,1737664254314,-3142.87144456,0.00018749,2]
[350165439,1737664254323,-2000.0,0.00018751,2]
[350165440,1737664254333,-549.57448617,0.0001876,2]
[350165441,1737664254342,-549.57448617,0.00018761,2]
[350165442,1737664254351,-241.94461114,0.00018797,2]
[350165443,1737664254360,-2300.0,0.000188,6]
[350165444,1737664254369,-156.27410406,0.0001888,2]
[350165445,1737664254379,-549.57448617,0.0001888,2]
[350165446,1737664254388,-2807.62523754,0.0001888,2]
[350165447,1737664254397,-174.06153228,0.0001888,2]
[350165448,1737664254407,-26606.56280233,0.000189,2]
[350165449,1737664254416,-400.0,0.000189,6]
[350165450,1737664254426,-3142.87144456,0.000189,2]
[350165451,1737664254436,-736.0,0.00018932,2]
[350165452,1737664254445,-500.0,0.00018932,2]
[350165453,1737664254454,-500.0,0.00018932,2]
[350165454,1737664254466,-526.48,0.00018932,2]
[350165455,1737664254476,-973.64,0.00018932,2]
[350165456,1737664254487,-500.0,0.00018932,2]
[350165457,1737664254496,-500.0,0.00018932,2]
[350165458,1737664254506,-766.88,0.00018932,2]
[350165459,1737664254515,-500.0,0.00018932,2]
[350165460,1737664254525,-500.0,0.00018932,2]
[350165461,1737664254536,-500.0,0.00018932,2]
[350165462,1737664254546,-698.41,0.00018932,2]
[350165463,1737664254565,-500.0,0.00018932,2]
[350165464,1737664254574,-500.0,0.00018932,2]
[350165465,1737664254583,-500.0,0.00018932,2]
[350165466,1737664254593,-500.0,0.00018932,2]
[350165467,1737664254602,-500.0,0.00018932,2]
[350165468,1737664254612,-500.0,0.00018932,2]
[350165469,1737664254622,-500.0,0.00018932,2]
[350165470,1737664254631,-500.0,0.00018932,2]